Cogmind - Beta 16.1 @@@ ROGUE MODE // 2026.03.18 @ 18:07:30 Player: ae Result: Destroyed by G-73 Enforcer with Phase Gun Performance ------------- Evolutions (9) 4500 Regions Visited (21) 4200 Robots Destroyed (401) 2005 Value Destroyed (21297) 21297 Prototype IDs (37) 740 Alien Tech Used (0) 0 Bonus (11259) 11259 TOTAL SCORE: 44001 Bonus ------- Triggered High Security 500 High Alert Combat Kills 6218 Follower Combat Kills 1663 Entered Garrisons 400 Built Enhanced Grunts 300 Met R17 at Cetus 500 Met R17 at Research 2000 Friendly Fire -322 Cogmind --------- Core Integrity 0/1600 Matter 257/300 Energy 9/100 System Corruption 32% Temperature Cool (9) Movement Walking (90) Location -1/Access Parts ------- > --- POWER (2) -------- (None) > --- PROPULSION (6) --- Advanced VSS Leg Advanced VSS Leg > --- UTILITY (13) ----- Machine Analyzer Advanced Signal Interpreter Advanced Target Analyzer Graphene Brace Improved System Shield > --- WEAPON (4) ------- (None) > --- INVENTORY (5) ---- Railgun Multirail Peak State ------------ > --- POWER ------------ Quantum Reactor Light Quantum Reactor > --- PROPULSION ------- Centrium Heavy Treads Centrium Heavy Treads Centrium Heavy Treads > --- UTILITY ---------- Advanced Cryofiber Web Advanced Cooling System Huge Storage Unit Advanced Signal Interpreter Advanced Targeting Computer Advanced Target Analyzer Core Analyzer Improved Armor Integrity Analyzer Makeshift Transmission Jammer Centrium Medium Armor Plating Centrium Medium Armor Plating Graphene Brace Experimental Shield Generator > --- WEAPON ----------- Enhanced Nova Cannon Railgun Railgun Multirail > --- INVENTORY -------- Antimatter Reactor Armored Heavy Treads Centrium Heavy Treads Cesium-ion Thruster Cesium-ion Thruster Nuclear Pulse Array Advanced Cooling System High-capacity Matter Pod Advanced Sensor Array Advanced Sensor Array Advanced Target Analyzer Quantum Capacitor Improved Hacking Suite Improved Hacking Suite Improved System Shield Advanced Recalibrator Compact HERF Cannon Enhanced Nova Cannon Enhanced Nova Cannon AWS/Gauss [Rating: 203] Favorites ----------- Power Quantum Reactor Engine Improved Ion Engine Reactor Quantum Reactor Propulsion Light Treads Treads Light Treads Leg Improved VSS Leg Wheel Armored Huge Wheel Flight Unit Cesium-ion Thruster Utility Huge Storage Unit Device Makeshift Transmission Jammer Storage Huge Storage Unit Processor Advanced Targeting Computer Hackware Improved System Shield Protection Centrium Medium Armor Plating Weapon Gauss Rifle Energy Gun High-powered Shock Rifle Energy Cannon Enhanced Nova Cannon Ballistic Gun Gauss Rifle Ballistic Cannon Mass Driver Launcher Micro-nuke Launcher Build | -11 -10 -10 -10 -9 -8 -8 -8 -7 -7 -6 -6 -6 -5 -5 -5 -4 -4 -4 -3 -2 -1 ------- Run | Yrd Mat Min Exi Min Mat Gar Mat Fac Gar Fac Was Fac Fac Ext Cet Fac Was Fac Res Res Acc Slots Evolved 18 | . . . . . 4 . . 2 . 2 . . 2 . . 2 . . 2 2 2 Power 1 | . . . . . . . . . . . . . . . . . . . 1 . . Propulsion 4 | . . . . . 1 . . 1 . . . . . . . 2 . . . . . Utility 11 | . . . . . 3 . . . . 2 . . 1 . . . . . 1 2 2 Weapon 2 | . . . . . . . . 1 . . . . 1 . . . . . . . . Parts Attached 218 | 8 . . 2 2 19 12 3 3 18 13 9 9 18 5 7 . 1 3 15 7 64 Power 23 | 1 . . . 1 1 2 . . 3 . 3 . 1 . 1 . . . 2 1 7 Engine 9 | 1 . . . 1 1 2 . . 3 . 1 . . . . . . . . . . Core . | . . . . . . . . . . . . . . . . . . . . . . Reactor 14 | . . . . . . . . . . . 2 . 1 . 1 . . . 2 1 7 Propulsion 52 | 2 . . . . 5 5 1 1 6 2 1 1 1 1 1 . 1 . 3 2 19 Treads 37 | 2 . . . . 5 5 1 1 4 . 1 1 1 1 1 . 1 . 3 2 8 Leg 5 | . . . . . . . . . 1 1 . . . . . . . . . . 3 Wheel 1 | . . . . . . . . . . 1 . . . . . . . . . . . Hover . | . . . . . . . . . . . . . . . . . . . . . . Flight 9 | . . . . . . . . . 1 . . . . . . . . . . . 8 Utility 86 | 2 . . 1 1 9 1 2 1 4 6 2 4 13 3 3 . . 1 5 3 25 Device 32 | 1 . . . . 1 . . . 1 1 . 3 8 . 1 . . 1 3 1 11 Storage 4 | 1 . . 1 . 1 . . . . . . . . 1 . . . . . . . Processor 16 | . . . . . 2 . . 1 . 2 1 . 2 1 . . . . 1 . 6 Hackware 5 | . . . . . . . . . . . . . . . 1 . . . . . 4 Protection 29 | . . . . 1 5 1 2 . 3 3 1 1 3 1 1 . . . 1 2 4 Artifact . | . . . . . . . . . . . . . . . . . . . . . . Weapon 57 | 3 . . 1 . 4 4 . 1 5 5 3 4 3 1 2 . . 2 5 1 13 Energy Gun 9 | 1 . . . . . . . . 1 3 . 2 1 . . . . 1 . . . Energy Cannon 10 | . . . . . . . . . . . . . . . . . . . . 1 9 Ballistic Gun 32 | 2 . . 1 . 3 4 . 1 4 2 3 1 2 1 1 . . 1 3 . 3 Ballistic Cannon 3 | . . . . . 1 . . . . . . 1 . . 1 . . . . . . Launcher 3 | . . . . . . . . . . . . . . . . . . . 2 . 1 Special Weapon . | . . . . . . . . . . . . . . . . . . . . . . Impact Weapon . | . . . . . . . . . . . . . . . . . . . . . . Slashing Weapon . | . . . . . . . . . . . . . . . . . . . . . . Piercing Weapon . | . . . . . . . . . . . . . . . . . . . . . . Special Melee Weapon . | . . . . . . . . . . . . . . . . . . . . . . Unidentified Prototypes 8 | . . . . . . . . . 1 . . . 1 . 3 . . . 2 . 1 Corrupted Parts 2 | . . . . . . . . . . . 2 . . . . . . . . . . System Corruption 4 | . . . . . . . . . . . 4 . . . . . . . . . . Parts Lost 92 | . . . . . 1 4 2 . 16 1 4 5 3 1 1 . . . . 1 53 Power 10 | . . . . . . . . . 2 . . . 1 . . . . . . 1 6 Propulsion 25 | . . . . . . 2 1 . 6 . 1 1 . . . . . . . . 14 Utility 34 | . . . . . . 1 1 . 3 1 1 2 2 1 . . . . . . 22 Weapon 23 | . . . . . 1 1 . . 5 . 2 2 . . 1 . . . . . 11 Highest Loss Streak 19 | . . . . . 1 3 1 . 10 1 3 1 1 1 1 . . . . 1 19 To Critical Strikes 1 | . . . . . . 1 . . . . . . . . . . . . . . . Average Backups 18 | 6 8 8 8 9 11 23 23 21 21 23 21 18 18 18 18 19 19 19 20 21 18 Power 1 | . 1 1 1 1 . 2 2 2 1 2 1 2 1 2 2 2 2 2 2 2 1 Propulsion 3 | 3 3 2 1 1 1 4 5 4 4 5 5 4 4 4 4 4 4 4 4 4 4 Utility 9 | 1 3 3 4 5 5 10 11 11 12 10 10 9 9 9 10 11 11 11 11 11 8 Weapon 3 | . 1 1 1 2 3 5 4 4 3 5 3 2 2 2 1 2 2 2 2 3 4 Tool/Special . | . . . . . . . . . . . . . . . . . . . . . . Unused Backups 46 | 1 1 1 3 1 1 1 3 . 6 5 2 . 1 . 1 . 3 . 6 2 8 Power 9 | . . . . 1 . . 1 . 1 . . . . . 1 . 2 . . . 3 Propulsion 7 | 1 1 1 1 . . . . . . . . . . . . . 1 . . 1 1 Utility 19 | . . . 2 . . . 1 . 3 3 2 . 1 . . . . . 5 . 2 Weapon 11 | . . . . . 1 1 1 . 2 2 . . . . . . . . 1 1 2 Tool/Special . | . . . . . . . . . . . . . . . . . . . . . . Average Slot Usage (%) 89 | . 100 100 100 100 94 94 100 99 94 92 82 84 87 87 88 78 76 82 84 83 84 Engine 3 | . 14 14 14 14 9 9 9 7 6 6 1 . . . . . . . . . . Reactor 3 | . . . . . . . . . . . 4 6 5 5 5 5 5 5 8 8 7 Treads 17 | . 28 28 28 28 26 26 27 30 29 14 7 7 11 11 11 10 13 15 14 13 11 Device 12 | . 14 14 14 1 8 9 9 7 7 8 2 13 16 13 11 10 10 10 13 15 20 Storage 6 | . 14 14 14 14 9 9 9 7 7 6 6 6 5 5 5 5 5 5 4 4 3 Processor 13 | . . . . . 7 9 9 7 7 14 20 20 13 20 23 21 21 21 19 17 18 Protection 9 | . . . . 12 18 18 18 15 14 14 16 5 8 5 5 5 5 5 4 7 5 Energy Gun 1 | . . . . . . . . . . 10 . 6 9 2 4 5 . . . . . Energy Cannon 1 | . . . . . . . . . . . . . . . . . . . . . 8 Ballistic Gun 13 | . 28 28 28 28 9 8 18 22 17 8 15 10 6 14 12 15 15 19 17 16 6 Ballistic Cannon 1 | . . . . . 4 4 . . . . . 1 4 5 3 . . . . . . Peak Build Rating 203 | 9 9 9 15 15 33 33 34 36 52 62 83 83 100 101 119 119 134 134 161 181 203 Average Rating 91 | 7 9 9 12 14 29 31 32 35 37 58 75 77 96 99 112 116 130 128 147 173 187 On Entrance 68 | . 9 9 9 15 14 32 33 33 36 50 62 83 81 98 100 119 116 134 129 161 180 Avg Prop Armor Cover (%) 10 | . . . . . . . . . 2 9 11 12 . . . . . . 8 8 21 Naked Turns . | . . . . . . . . . . . . . . . . . . . . . . Heaviest Build 221 | 12 12 12 18 24 114 114 113 113 118 128 124 124 144 135 138 135 131 131 157 169 221 Greatest Support 240 | 40 40 40 40 40 60 60 60 80 80 60 28 140 140 140 150 150 220 220 225 240 240 Greatest Overweight (x) 4 | 1 . . . . 1 1 1 1 2 4 4 4 1 . . . . . 1 1 4 Average Overweight (x) . | . . . . . . 1 1 1 1 3 3 3 . . . . . . . . . Largest Inventory Capacity 25 | 8 8 8 10 10 25 25 25 25 25 25 25 25 25 25 25 25 25 25 25 25 25 Average Capacity 22 | 7 8 8 8 10 16 25 25 25 25 25 25 25 25 25 25 25 25 25 25 25 24 Most Carried 25 | 8 8 8 10 10 23 25 25 24 25 25 25 25 25 25 25 25 25 25 25 25 25 Average Carried 21 | 6 7 7 8 10 12 24 24 22 23 24 24 23 24 24 24 25 24 24 24 24 23 Final Capacity 25 | 8 8 8 10 10 25 25 25 25 25 25 25 25 25 25 25 25 25 25 25 25 5 Final Carried 25 | 8 8 8 10 10 23 25 24 24 25 25 25 25 25 25 25 25 25 25 25 25 2 Class Distribution -------------------- 34% | Scavenger-Tank 27% | Scavenger-Gunner 21% | Scavenger-Mutant 6% | Mutant 5% | Commander-Mutant 3% | Gunner Dominant Class ---------------- Mutant | -10/Materials Mutant | -10/Mines Commander-Mutant | -10/Exiles Commander-Mutant | -9/Mines Scavenger-Mutant | -8/Materials Scavenger-Mutant | -8/Garrison Scavenger-Mutant | -8/Materials Scavenger-Tank | -7/Factory Scavenger-Mutant | -7/Garrison Scavenger-Gunner | -6/Factory Scavenger-Tank | -6/Waste Scavenger-Gunner | -6/Factory Scavenger-Tank | -5/Factory Scavenger-Tank | -5/Extension Scavenger-Tank | -5/Cetus Scavenger-Gunner | -4/Factory Scavenger-Gunner | -4/Waste Scavenger-Gunner | -4/Factory Scavenger-Gunner | -3/Research Scavenger-Tank | -2/Research Scavenger-Gunner | -1/Access Resources | -11 -10 -10 -10 -9 -8 -8 -8 -7 -7 -6 -6 -6 -5 -5 -5 -4 -4 -4 -3 -2 -1 ----------- Run | Yrd Mat Min Exi Min Mat Gar Mat Fac Gar Fac Was Fac Fac Ext Cet Fac Was Fac Res Res Acc Matter Collected 12385 | 376 50 178 36 36 1171 883 481 101 1340 229 408 466 741 1091 231 . 155 137 476 1372 2427 Remotely 10 | . . . . . . . . . . . . . . . . . . . 10 . . Salvage Created 23685 | 221 68 129 50 19 1053 696 802 101 1481 243 1599 987 1025 1182 140 415 1483 106 757 2648 8480 Parts 1068 | 23 2 5 3 1 69 41 40 3 61 8 28 51 61 46 10 16 22 5 32 147 394 Haulers Intercepted 10 | . . . . . 1 . 3 . . . . 1 1 . . . . . 1 . 3 Recyclers Shooed 19 | 2 1 . . 1 . . 1 . . 2 . 4 1 1 . . . . 1 . 5 Parts Field Recycled . | . . . . . . . . . . . . . . . . . . . . . . Retrieved Matter . | . . . . . . . . . . . . . . . . . . . . . . Parts Self-Destructed . | . . . . . . . . . . . . . . . . . . . . . . Prevented . | . . . . . . . . . . . . . . . . . . . . . . Parts Restored 2 | . . . . . . . . . . . . 1 1 . . . . . . . . Broken 2 | . . . . . . . . . . . . 1 1 . . . . . . . . Kills | -11 -10 -10 -10 -9 -8 -8 -8 -7 -7 -6 -6 -6 -5 -5 -5 -4 -4 -4 -3 -2 -1 ------- Run | Yrd Mat Min Exi Min Mat Gar Mat Fac Gar Fac Was Fac Fac Ext Cet Fac Was Fac Res Res Acc Combat Hostiles Destroyed 297 | . . 3 . 1 17 25 9 2 20 2 6 16 13 18 2 5 6 2 8 29 113 Melee 1 | . . . . . . . . . . . . . . . . . . . . . 1 Guns 166 | . . 3 . 1 13 4 9 2 20 2 6 11 5 13 2 5 6 2 8 27 27 Cannons 100 | . . . . . 4 21 . . . . . 4 7 5 . . . . . 2 57 AOE 13 | . . . . . . . . . . . . 1 1 . . . . . . . 11 Classes Destroyed 22 | 3 . 1 . 1 7 1 1 . 2 . 1 . . 1 . . . . 1 . 3 Worker 17 | 2 . . . . 1 . . . . 1 . . 3 . . 1 . . 2 2 5 Builder 32 | . . . . . 2 . 1 . . . . 1 1 3 . . . . . 5 19 Tunneler 7 | 5 . . . . . . 2 . . . . . . . . . . . . . . Hauler 10 | . . . . . 1 . 3 . . . . 1 1 . . . . . 1 . 3 Recycler 13 | 1 1 . . . 1 . 3 . . 1 . 1 1 1 . . . . . . 3 Mechanic 2 | . . . . . 1 . . . . . . . . . . . . . . . 1 Operator 9 | . . . . . 2 . . . . 1 . 1 1 . . . . . 1 2 1 Watcher 13 | . . . . . 2 . 1 . . 1 . 2 1 2 . . . . . 1 3 Swarmer 61 | . . . . 1 3 8 2 . 6 . . 7 1 5 . . . 1 . 4 23 Saboteur 1 | . . . . . . . . . . . . . . . . . . . . . 1 Grunt 99 | . . 3 . . 6 8 5 2 7 . . 6 2 9 . 3 . . 3 11 34 Brawler 9 | . . . . . . 2 . . 1 . . . . . . 1 . . . 1 4 Duelist 3 | . . . . . . . . . . . . . . . . . . . . . 3 Protector 4 | . . . . . . . 1 . . . . . . . . . . . . 1 2 Sentry 30 | . . . . . 5 7 . . 3 . . 2 1 3 . 1 . 1 1 2 4 Specialist 2 | . . . . . . . . . . . . . . . . . . . . 2 . Hunter 26 | . . . . . 3 . 1 . 2 . . . 3 . 1 . . . 2 5 9 Programmer 41 | . . . . . . . . . 1 2 . 1 6 . . . . . . 3 28 Behemoth 3 | . . . . . . . . . . . . . . 1 . . . . 1 . 1 Compactor 12 | . . . . . . . . . . . 6 . . . . . 6 . . . . Cetus Guard 1 | . . . . . . . . . . . . . . . 1 . . . . . . Striker 4 | . . . . . . . . . . . . . . . . . . . 1 . 3 Executioner 1 | . . . . . . . . . . . . . . . . . . . . . 1 Infiltrator 1 | . . . . . . . . . 1 . . . . . . . . . . . . Best Kill Streak 23 | 3 1 2 . 1 5 6 5 2 5 2 2 8 5 4 1 6 3 1 5 8 23 Combat Bots Only 20 | . . 2 . 1 3 6 3 2 5 1 2 6 4 4 1 5 3 1 4 5 20 Max Kills in Single Turn 9 | 1 1 1 . 1 2 1 1 1 2 1 1 2 2 2 1 2 2 1 2 2 9 Gunslinging 1 | . . . . . . . . . 1 . . . . . . . . . . 1 . Exploded 3 | . . . . . . . . . . . . 1 1 . . . . . . . 3 Melee 1 | . . . . . . . . . . . . . . . . . . . . . 1 Uniques/NPCs Destroyed . | . . . . . . . . . . . . . . . . . . . . . . Combat | -11 -10 -10 -10 -9 -8 -8 -8 -7 -7 -6 -6 -6 -5 -5 -5 -4 -4 -4 -3 -2 -1 -------- Run | Yrd Mat Min Exi Min Mat Gar Mat Fac Gar Fac Was Fac Fac Ext Cet Fac Was Fac Res Res Acc Hostile Shots Fired 2010 | . . 6 . 2 91 157 43 8 167 21 3 116 92 68 30 13 . 4 4 205 980 Missed 507 | . . 4 . 1 27 35 15 1 39 8 . 43 27 11 11 3 . 3 1 30 248 Hits 1503 | . . 2 . 1 64 122 28 7 128 13 3 73 65 57 19 10 . 1 3 175 732 Melee 20 | . . . . . . 1 . . 1 . 3 . . . . . . . . . 15 Projectile 1483 | . . 2 . 1 64 121 28 7 127 13 . 73 65 57 19 10 . 1 3 175 717 AOE 3 | . . . . . . . . . . 1 . . . . . . . . 2 . . Critical Strikes 51 | . . . . . 2 2 1 1 4 2 1 . 2 2 2 . . . . 5 27 Actively Blocked 33 | . . . . . . 1 . . . . . . . . . . . . . 5 27 Part Disruptions 5 | . . . . . 1 . . . 1 . . 1 . . . . . . . 1 1 Damage Taken 26462 | . . 29 . 16 1032 1272 436 106 1854 300 141 1130 1209 1033 332 200 . 16 168 2663 14525 Core 2403 | . . 15 . 16 139 76 37 . 171 30 . 134 27 20 22 . . . . 101 1615 Absorbed by Shields 3325 | . . . . . . 71 . . . . . . 220 258 119 . . . 14 960 1683 Reduced by Siege Mode 1440 | . . . . . . . . . . . . . 27 73 22 12 . . 6 294 1006 Redirected to Shielding 320 | . . . . . 34 51 . 29 12 . 21 57 . 6 . . . . . . 110 Ignored by Resistances 111 | . . . . . . . . . . . . . . . . . . . . . 111 Regen/Repaired (Parts) 143 | . . . . . 18 . . . . . . . 24 . . . . . 101 . . Core Remaining (%) 86 | 100 . . . 87 . . 54 . 75 . . 80 . . 93 . . 100 100 93 . Volleys Fired 990 | 24 . 7 2 2 73 87 49 6 150 18 17 59 54 48 12 7 2 6 26 68 273 Largest 4 | 2 . 2 2 2 2 2 2 3 3 3 3 3 4 4 4 4 2 4 4 4 4 Hottest 480 | 40 . 40 44 44 56 56 56 79 108 115 90 175 197 172 170 158 68 126 177 138 480 Shots Fired 2471 | 48 . 14 4 4 121 95 98 18 330 43 82 146 128 178 42 28 25 17 98 254 698 Gun 1836 | 48 . 14 4 4 97 21 98 18 330 43 82 125 92 129 36 28 25 17 98 250 277 Cannon 624 | . . . . . 24 74 . . . . . 21 36 49 6 . . . . 4 410 Launcher 11 | . . . . . . . . . . . . . . . . . . . . . 11 Special . | . . . . . . . . . . . . . . . . . . . . . . Kinetic 1886 | 48 . 14 4 4 121 95 98 18 329 26 82 99 73 161 31 21 25 17 93 250 277 Thermal 388 | . . . . . . . . . 1 . . . 10 . . . . . 5 . 372 Explosive 11 | . . . . . . . . . . . . . . . . . . . . . 11 Electromagnetic 186 | . . . . . . . . . . 17 . 47 45 17 11 7 . . . 4 38 Robot Hit Streak 51 | 5 . 5 5 3 9 17 24 15 42 15 21 20 14 16 12 13 9 10 15 22 51 Robot Miss Streak 9 | 4 . 2 1 3 5 6 2 1 5 4 2 4 9 5 4 1 1 3 3 9 5 Penetration Max 2 | . . . . . 1 1 1 . 1 . . 1 1 2 1 1 . . 1 2 1 Secondary Targets 23 | . . 1 . 1 2 . . 1 5 . . . . . . 2 . . 1 6 4 Max Gunslinging Chain 1 | . . 1 . 1 1 . . 1 1 . . . . . . 1 . . 1 1 1 Capacitor 12 | . . . . . . . . . . . . . . . . . . . . . 12 Autonomous 111 | . . . . . . . . . . . 33 22 . . . . 21 . . . 35 Shots Hit Robots 1647 | 24 . 9 3 3 86 54 74 16 258 29 70 97 77 116 26 23 23 9 52 158 440 Core Hits 796 | 15 . 5 3 3 42 27 29 4 93 8 19 45 37 44 11 16 13 5 29 91 257 Critical Kills 76 | . . . . . 1 . . . 4 . 2 . . 8 1 2 3 . 4 22 29 Critical Parts Destroyed 71 | . . . . . 1 . 5 1 4 . . 3 2 8 1 2 . 1 2 25 16 Critical Strikes 192 | . . . . . 3 7 5 1 8 1 5 10 8 24 3 5 3 1 7 47 54 Meltdown 13 | . . . . . . . . . . . . . . . . . . . . . 13 Destroy 144 | . . . . . 2 . 5 1 8 . 5 3 2 18 2 4 3 1 7 47 36 Blast 18 | . . . . . 1 7 . . . . . 2 3 4 1 . . . . . . Corrupt 17 | . . . . . . . . . . 1 . 5 3 2 . 1 . . . . 5 Melee Attacks . | . . . . . . . . . . . . . . . . . . . . . . Impact . | . . . . . . . . . . . . . . . . . . . . . . Slashing . | . . . . . . . . . . . . . . . . . . . . . . Piercing . | . . . . . . . . . . . . . . . . . . . . . . Sneak Attacks . | . . . . . . . . . . . . . . . . . . . . . . Combat Hostiles . | . . . . . . . . . . . . . . . . . . . . . . Follow-up Attacks . | . . . . . . . . . . . . . . . . . . . . . . Damage Inflicted 47444 | 255 12 99 46 55 2240 2340 1543 282 3184 863 1708 2627 2173 2958 751 671 676 177 1233 3502 20049 Guns 25994 | 255 . 99 46 48 1336 243 1543 282 3184 751 1708 2060 1472 1705 633 671 676 171 1110 3266 4735 Cannons 16496 | . . . . . 896 2097 . . . . . 493 525 1068 118 . . . . 168 11131 Explosions 4425 | . . . . . . . . . . 107 . 74 137 94 . . . . . . 4013 Melee . | . . . . . . . . . . . . . . . . . . . . . . Ramming 529 | . 12 . . 7 8 . . . . 5 . . 39 91 . . . 6 123 68 170 Kinetic 28590 | 255 . 99 46 48 2232 2340 1543 282 3162 413 1708 1861 1140 2508 549 568 676 171 988 3266 4735 Thermal 10974 | . . . . . . . . . 22 107 . 74 207 94 . . . . 122 . 10348 Explosive 3638 | . . . . . . . . . . . . . 137 . . . . . . . 3501 Electromagnetic 3713 | . . . . . . . . . . 338 . 692 650 265 202 103 . . . 168 1295 Impact . | . . . . . . . . . . . . . . . . . . . . . . Slashing . | . . . . . . . . . . . . . . . . . . . . . . Piercing . | . . . . . . . . . . . . . . . . . . . . . . Highest Corruption 42 | . . . . . 2 2 2 . 1 1 42 42 3 3 3 . 19 19 3 6 32 Average Corruption 8 | . . . . . 2 2 2 . 1 1 21 40 1 3 3 . 11 19 2 5 15 Corruption Purged 5 | . . . . . . . . . . . . 5 . . . . . . . . . Corruption Blocked . | . . . . . . . . . . . . . . . . . . . . . . Effects 356 | . . . . . 2 15 5 . 9 4 25 70 11 27 8 . 6 9 16 10 139 Message Errors 73 | . . . . . 1 4 1 . 2 1 8 9 3 7 3 . 2 1 3 1 27 Matter Fused 76 | . . . . . 1 3 1 . 2 1 5 13 3 5 . . 1 2 7 2 30 Heat Flow Errors 48 | . . . . . . 3 1 . . 1 5 7 2 4 1 . 1 2 2 1 18 Energy Discharges 34 | . . . . . . . 1 . 1 . 2 8 . 4 . . . 1 1 2 14 Parts Rejected 7 | . . . . . . 1 1 . . . . 1 . 1 . . . . . . 3 Parts Fused 4 | . . . . . . . . . . . . 1 . 1 . . . . . . 2 Data Loss (minor) 44 | . . . . . . . . . 1 . 1 9 3 2 1 . 2 2 3 4 16 Data Loss (major) 16 | . . . . . . 1 . . . 1 1 6 . 1 2 . . . . . 4 Misfires 6 | . . . . . . 1 . . . . . 1 . 1 . . . . . . 3 Alerts 9 | . . . . . . 1 . . 2 . . 2 . . 1 . . . . . 3 Misdirections 8 | . . . . . . . . . . . 1 . . . . . . . . . 7 Weapon Failures 31 | . . . . . . 1 . . 1 . 2 13 . 1 . . . 1 . . 12 Overload Shots . | . . . . . . . . . . . . . . . . . . . . . . Overflow Damage 752 | . . . . . 123 60 . . . 11 . 21 . 50 6 . . . . . 481 Projectiles 347 | . . . . . 123 60 . . . . . 3 . 18 6 . . . . . 137 Explosions 373 | . . . . . . . . . . 11 . 18 . . . . . . . . 344 Melee 32 | . . . . . . . . . . . . . . 32 . . . . . . . Knockbacks 26 | . . . . . 8 5 . . . . . 3 3 6 . . . . . . 1 Impact 1 | . . . . . . . . . . . . . . . . . . . . . 1 Kinetic 21 | . . . . . 5 4 . . . . . 3 3 6 . . . . . . . Secondary 4 | . . . . . 3 1 . . . . . . . . . . . . . . . Self-Inflicted Damage 526 | . . . . . 13 . . . . 2 . 68 146 71 . . . . . . 226 Shots 10 | . . . . . 1 . . . . . . 1 3 1 . . . . . . 4 Rammed 28 | . 1 . . 1 2 . . . . 1 . . 2 5 . . . 1 5 3 7 Targets Rammed 30 | . 2 . . 1 2 . . . . 1 . . 2 5 . . . 1 5 3 8 Kicked 1 | . . . . . . . . . . . . . . . . . . . . . 1 Crushed 1 | . 1 . . . . . . . . . . . . . . . . . . . . Highest Temperature 447 | . . 9 . . 65 285 161 151 100 242 222 212 157 208 241 11 87 233 211 126 447 Average Temperature 63 | . . 9 . . 22 44 52 80 30 94 65 69 51 55 86 7 61 143 37 44 118 Received Heat Transfer 3503 | . . 18 . . 279 261 207 81 441 . . 333 74 284 . 72 . . 18 174 1261 Effects 5 | . . . . . . . . . . . . . . . . . . . . . 5 Shutdowns 2 | . . . . . . . . . . . . . . . . . . . . . 2 Energy Bleed 1 | . . . . . . . . . . . . . . . . . . . . . 1 Short Circuit 1 | . . . . . . . . . . . . . . . . . . . . . 1 Damage (minor) 1 | . . . . . . . . . . . . . . . . . . . . . 1 Siege Activations 55 | . . . . . . . . . . . . . 5 6 3 1 . 1 4 7 28 Total Turns 1011 | . . . . . . . . . . . . . 66 203 31 24 . 2 31 147 507 Longest Duration 72 | . . . . . . . . . . . . . 28 72 20 24 . 2 12 39 59 Martial Activations . | . . . . . . . . . . . . . . . . . . . . . . Shielding Activations . | . . . . . . . . . . . . . . . . . . . . . . Robots Disrupted . | . . . . . . . . . . . . . . . . . . . . . . Combat Hostiles . | . . . . . . . . . . . . . . . . . . . . . . Robots Corrupted 7 | . . . . . 1 . . . . 2 . . . . . . . . . . 4 Combat Hostiles 4 | . . . . . . . . . . . . . . . . . . . . . 4 Parts Fried 26 | . . . . . 1 . . . . 1 . 1 7 3 . . . . . 1 12 Impact Corruptions 3 | . . . . . 2 . . . . . . . . 1 . . . . . . . Robots Melted 13 | . . . . . . . . . . . . . . . . . . . . . 13 Combat Hostiles 13 | . . . . . . . . . . . . . . . . . . . . . 13 Parts Melted 53 | . . 1 . . . . . . 1 . . . 1 . . . . . 1 . 49 Heat Transferred 8592 | . . . . . . . . . 50 100 . 50 296 100 . . . . 185 . 7811 Parts Sabotaged 6 | . . . . . . . . . . . . . . . . . . . . . 6 Parts Stolen . | . . . . . . . . . . . . . . . . . . . . . . Parts Stripped . | . . . . . . . . . . . . . . . . . . . . . . Power Chain Reactions 4 | . . . . . . . . . . 1 . 1 . 1 . . . . . . 1 Alert | -11 -10 -10 -10 -9 -8 -8 -8 -7 -7 -6 -6 -6 -5 -5 -5 -4 -4 -4 -3 -2 -1 ------- Run | Yrd Mat Min Exi Min Mat Gar Mat Fac Gar Fac Was Fac Fac Ext Cet Fac Was Fac Res Res Acc Maximum Alert Level 5 | . . . . . 1 4 2 1 4 3 . 1 1 . 1 1 . 1 1 2 5 Low Security (%) 35 | 100 100 100 . 100 91 3 . 19 3 . 100 62 40 100 43 76 100 72 27 43 . Level 1 25 | . . . . . 8 21 . 80 16 6 . 37 59 . 56 24 . 27 72 25 23 Level 2 16 | . . . . . . 20 100 . 45 72 . . . . . . . . . 30 13 Level 3 9 | . . . . . . 37 . . 24 21 . . . . . . . . . . 14 Level 4 6 | . . . . . . 17 . . 9 . . . . . . . . . . . 22 Level 5 1 | . . . . . . . . . . . . . . . . . . . . . 8 High Security 3 | . . . . . . . . . . . . . . . . . . . . . 17 Max Security . | . . . . . . . . . . . . . . . . . . . . . . Peak Influence 3409 | 15 5 50 . 167 222 1264 676 303 1443 757 84 366 377 188 312 347 119 348 337 599 3409 Initial 757 | . . . . . 46 122 616 303 145 757 84 . 164 79 89 147 117 11 182 110 353 Average 503 | 1 . 23 . 129 142 777 595 234 626 617 12 141 216 125 211 171 73 99 237 298 1215 Influence Increases 13516 | 40 14 80 7 209 795 1182 333 65 1458 129 6 742 864 633 443 250 10 415 685 866 4290 Destroy 0b10 Robot/C 6360 | . . 60 . 100 460 500 160 40 580 40 . 320 260 400 200 100 . 120 240 560 2220 Destroy 0b10 Robot/NC 595 | 40 5 . 5 . 55 . 55 . 25 20 . 30 40 30 10 5 . . 35 55 185 Destroy Leader 1132 | . . 20 . 10 148 20 38 10 40 22 . 76 74 34 10 20 . 20 76 132 382 Allied During Kill 933 | . . . 2 42 40 . . . 35 . . . . 80 207 125 . 140 262 . . Successful Hack 168 | . 9 . . 12 3 . . . 14 28 . . 22 19 . . . . 2 32 27 Disable Machine 900 | . . . . . 45 75 15 15 15 15 . 180 255 . . . . 60 30 15 180 Anti-Garrison Action 1150 | . . . . . . 500 . . 650 . . . . . . . . . . . . Destroy Structure 1363 | . . . . . 14 72 5 . 84 4 6 61 168 40 16 . 10 60 40 27 756 Partial Spotted 15 | . . . . . . . . . . . . . . . . . . . . . 15 Lose Combat Pursuer 900 | . . . . 45 30 15 60 . 15 . . 75 45 30 . . . 15 . 45 525 Influence Decreases 10107 | 40 14 80 7 90 725 107 930 524 223 1330 248 406 1036 637 339 177 330 84 837 472 1471 Entered New Map 3219 | . . . . . 73 67 648 364 63 686 158 . 172 85 71 117 220 6 166 86 237 Time Decay 5058 | 40 14 80 7 70 542 . 262 160 . 334 60 356 534 542 198 60 110 58 571 356 704 Lost Part 910 | . . . . . 10 40 20 . 160 10 30 50 30 10 10 . . . . 10 530 Lost Ally 320 | . . . . 20 100 . . . . . . . . . 60 . . 20 100 20 . Purge Threat 600 | . . . . . . . . . . 300 . . 300 . . . . . . . . Squads Dispatched 75 | . . . . . 3 . 1 2 . 3 . 4 4 2 1 . . 1 6 11 37 Investigation 10 | . . . . . 1 . . 1 . 1 . 1 1 1 1 . . . 3 . . Extermination 17 | . . . . . . . . 1 . 2 . 2 2 . . . . . . 1 9 Reinforcement 15 | . . . . . 2 . . . . . . 1 1 1 . . . 1 3 3 3 Assault 27 | . . . . . . . 1 . . . . . . . . . . . . 1 25 Garrison 6 | . . . . . . . . . . . . . . . . . . . . 6 . Intercept . | . . . . . . . . . . . . . . . . . . . . . . Searches Triggered . | . . . . . . . . . . . . . . . . . . . . . . Construction Impeded 4 | . . . . . . . . . . . . . . 1 . . . 1 . . 2 Haulers Reinforced 3 | . . . . . . . . . . . . . . . . . . . 2 . 1 Active Scanning Responses . | . . . . . . . . . . . . . . . . . . . . . . Cargo Convoy Interrupts 1 | . . . . . . . . . . . . . 1 . . . . . . . . Stealth | -11 -10 -10 -10 -9 -8 -8 -8 -7 -7 -6 -6 -6 -5 -5 -5 -4 -4 -4 -3 -2 -1 --------- Run | Yrd Mat Min Exi Min Mat Gar Mat Fac Gar Fac Was Fac Fac Ext Cet Fac Was Fac Res Res Acc Distress Signals 21 | . . . . . 1 . . . . . . . 1 1 2 1 . . 7 . 8 Communications Jammed 216 | . . . . . 2 . 9 1 . . . 2 28 13 . . . . 138 . 23 Distress Signals 214 | . . . . . 2 . 9 . . . . 2 28 13 . . . . 138 . 22 Times Spotted 458 | . 1 3 . 4 31 26 20 2 30 4 6 25 21 24 12 5 5 6 19 33 181 Peak Tracking Total 19 | . 1 2 . 5 3 4 5 2 5 2 2 4 5 5 5 5 2 5 7 6 19 Tactical Retreats 27 | . . . . 1 2 1 2 . 1 . . 4 1 1 . . . 1 . 3 10 Traps | -11 -10 -10 -10 -9 -8 -8 -8 -7 -7 -6 -6 -6 -5 -5 -5 -4 -4 -4 -3 -2 -1 ------- Run | Yrd Mat Min Exi Min Mat Gar Mat Fac Gar Fac Was Fac Fac Ext Cet Fac Was Fac Res Res Acc Traps Triggered 23 | . . . . . 3 6 . . 4 2 . 1 2 . . 1 . . 3 . 1 Indirectly . | . . . . . . . . . . . . . . . . . . . . . . Trap Hack Attempts . | . . . . . . . . . . . . . . . . . . . . . . Triggered . | . . . . . . . . . . . . . . . . . . . . . . Disarmed . | . . . . . . . . . . . . . . . . . . . . . . Reprogrammed . | . . . . . . . . . . . . . . . . . . . . . . Reused . | . . . . . . . . . . . . . . . . . . . . . . Traps Extracted . | . . . . . . . . . . . . . . . . . . . . . . Installed . | . . . . . . . . . . . . . . . . . . . . . . Triggered . | . . . . . . . . . . . . . . . . . . . . . . Machines | -11 -10 -10 -10 -9 -8 -8 -8 -7 -7 -6 -6 -6 -5 -5 -5 -4 -4 -4 -3 -2 -1 ---------- Run | Yrd Mat Min Exi Min Mat Gar Mat Fac Gar Fac Was Fac Fac Ext Cet Fac Was Fac Res Res Acc Machines Disabled 74 | . . . . . 3 12 1 1 8 1 . 12 17 . . . . 4 2 1 12 Max in Single Turn 6 | . . . . . 2 2 1 1 2 1 . 6 5 . . . . 1 1 1 2 Garrison Relay 10 | . . . . . . 5 . . 5 . . . . . . . . . . . . Phase Generator 2 | . . . . . . 1 . . 1 . . . . . . . . . . . . Energy Cycler 1 | . . . . . . . . . . . . . . . . . . . . . 1 Machines Repaired . | . . . . . . . . . . . . . . . . . . . . . . Machines Dismantled . | . . . . . . . . . . . . . . . . . . . . . . Machines Sabotaged . | . . . . . . . . . . . . . . . . . . . . . . Overloaded Fab Kills . | . . . . . . . . . . . . . . . . . . . . . . Hacking | -11 -10 -10 -10 -9 -8 -8 -8 -7 -7 -6 -6 -6 -5 -5 -5 -4 -4 -4 -3 -2 -1 --------- Run | Yrd Mat Min Exi Min Mat Gar Mat Fac Gar Fac Was Fac Fac Ext Cet Fac Was Fac Res Res Acc Machines Accessed 49 | . 2 . 5 1 3 1 1 2 3 4 . 3 6 5 1 . . 1 3 3 5 Terminals 29 | . 2 . . 1 . 1 1 . 3 3 . 2 3 5 1 . . 1 . 3 3 Fabricators 1 | . . . . . . . . . . . . . 1 . . . . . . . . Repair Stations 3 | . . . . . 1 . . . . . . . 1 . . . . . 1 . . Recycling Units 2 | . . . . . . . . 1 . . . . . . . . . . . . 1 Scanalyzers 3 | . . . . . 1 . . . . 1 . . 1 . . . . . . . . Garrison Access 6 | . . . . . 1 . . 1 . . . 1 . . . . . . 2 . 1 Total Hacks 87 | . 4 . 7 2 6 2 2 3 6 10 . 6 13 7 3 . . 2 4 3 7 Successful 39 | . 2 . 7 2 4 . 1 1 1 5 . . 7 4 . . . . 2 2 1 Failed 47 | . 2 . . . 2 2 1 2 5 4 . 6 6 3 3 . . 2 2 1 6 Catastrophic 17 | . . . . . . . . 1 2 1 . 4 3 1 1 . . . 2 . 2 Database Lockouts 1 | . . . . . . . . . . 1 . . . . . . . . . . . Manual 21 | . . . 1 2 . . 2 . . 2 . 1 3 . 1 . . 2 . 2 5 Terminals 51 | . 4 . . 2 . 2 2 . 6 7 . 3 5 7 3 . . 2 . 3 5 Fabricators 3 | . . . . . . . . . . . . . 3 . . . . . . . . Repair Stations 7 | . . . . . 2 . . . . . . . 3 . . . . . 2 . . Recycling Units 3 | . . . . . . . . 2 . . . . . . . . . . . . 1 Scanalyzers 8 | . . . . . 3 . . . . 3 . . 2 . . . . . . . . Garrison Access 8 | . . . . . 1 . . 1 . . . 3 . . . . . . 2 . 1 Terminal Hacks 23 | . 2 . 7 2 . . . . 1 3 . . 3 4 . . . . . 1 . Record 7 | . . . 6 . . . . . . . . . 1 . . . . . . . . Robot Analysis 1 | . 1 . . . . . . . . . . . . . . . . . . . . Prototype ID Bank 3 | . . . . 2 . . . . . . . . . 1 . . . . . . . Open Door 3 | . . . . . . . . . . . . . . 3 . . . . . . . Level Access Points 1 | . . . . . . . . . . . . . . . . . . . . 1 . Branch Access Points 1 | . . . . . . . . . . 1 . . . . . . . . . . . Unreport Threat 4 | . . . . . . . . . . 2 . . 2 . . . . . . . . Locate Traps 1 | . 1 . . . . . . . . . . . . . . . . . . . . Garrison Registry 1 | . . . . . . . . . 1 . . . . . . . . . . . . Proto ID Catalog 1 | . . . 1 . . . . . . . . . . . . . . . . . . Fabricator Hacks 1 | . . . . . . . . . . . . . 1 . . . . . . . . Network Status 1 | . . . . . . . . . . . . . 1 . . . . . . . . Repair Station Hacks 6 | . . . . . 2 . . . . . . . 2 . . . . . 2 . . Scan Component 3 | . . . . . 1 . . . . . . . 1 . . . . . 1 . . Repair 3 | . . . . . 1 . . . . . . . 1 . . . . . 1 . . Recycling Unit Hacks . | . . . . . . . . . . . . . . . . . . . . . . Scanalyzer 3 | . . . . . 1 . . . . 1 . . 1 . . . . . . . . Retrieve Study 3 | . . . . . 1 . . . . 1 . . 1 . . . . . . . . Garrison Access Hacks 2 | . . . . . 1 . . 1 . . . . . . . . . . . . . Unlock Access 2 | . . . . . 1 . . 1 . . . . . . . . . . . . . Unauthorized Hacks 4 | . . . . . . . 1 . . 1 . . . . . . . . . 1 1 Terminals 4 | . . . . . . . 1 . . 1 . . . . . . . . . 1 1 Botnet 4 | . . . . . . . 1 . . 1 . . . . . . . . . 1 1 Fabricators . | . . . . . . . . . . . . . . . . . . . . . . Repair Stations . | . . . . . . . . . . . . . . . . . . . . . . Recycling Units . | . . . . . . . . . . . . . . . . . . . . . . Scanalyzers . | . . . . . . . . . . . . . . . . . . . . . . Garrison Access . | . . . . . . . . . . . . . . . . . . . . . . Data Cores Recovered 2 | . . . . . . . . . . 1 . . . . . . . . . . 1 Used 2 | . . . . . . . . . . 1 . . . . . . . . . . 1 Hacking Detections 36 | . 2 . . 1 3 1 1 1 3 3 . 2 5 2 1 . . 1 3 2 5 Full Trace Events 7 | . . . . . 1 . . 1 1 . . 1 1 1 1 . . . . . . Feedback Events . | . . . . . . . . . . . . . . . . . . . . . . Feedback Blocked . | . . . . . . . . . . . . . . . . . . . . . . Robot Schematics Acquired . | . . . . . . . . . . . . . . . . . . . . . . Robots Built . | . . . . . . . . . . . . . . . . . . . . . . Authchips . | . . . . . . . . . . . . . . . . . . . . . . Time . | . . . . . . . . . . . . . . . . . . . . . . Total Robot Build Rating . | . . . . . . . . . . . . . . . . . . . . . . Part Schematics Acquired . | . . . . . . . . . . . . . . . . . . . . . . Parts Built . | . . . . . . . . . . . . . . . . . . . . . . Authchips . | . . . . . . . . . . . . . . . . . . . . . . Time . | . . . . . . . . . . . . . . . . . . . . . . Total Part Build Rating . | . . . . . . . . . . . . . . . . . . . . . . Part Studies Acquired 3 | . . . . . 1 . . . . 1 . . 1 . . . . . . . . Parts Repaired 3 | . . . . . 1 . . . . . . . 1 . . . . . 1 . . Time 132 | . . . . . 26 . . . . . . . 50 . . . . . 56 . . Parts Recycled . | . . . . . . . . . . . . . . . . . . . . . . Recycled Matter . | . . . . . . . . . . . . . . . . . . . . . . Retrieved Matter . | . . . . . . . . . . . . . . . . . . . . . . Retrieved Components . | . . . . . . . . . . . . . . . . . . . . . . Parts Scanalyzed . | . . . . . . . . . . . . . . . . . . . . . . Part Schematics Acquired . | . . . . . . . . . . . . . . . . . . . . . . Parts Damaged . | . . . . . . . . . . . . . . . . . . . . . . Bothacking | -11 -10 -10 -10 -9 -8 -8 -8 -7 -7 -6 -6 -6 -5 -5 -5 -4 -4 -4 -3 -2 -1 ------------ Run | Yrd Mat Min Exi Min Mat Gar Mat Fac Gar Fac Was Fac Fac Ext Cet Fac Was Fac Res Res Acc Used RIF Installer . | . . . . . . . . . . . . . . . . . . . . . . Robots Hacked . | . . . . . . . . . . . . . . . . . . . . . . Non-combat . | . . . . . . . . . . . . . . . . . . . . . . Combat . | . . . . . . . . . . . . . . . . . . . . . . Robot Hacks Applied . | . . . . . . . . . . . . . . . . . . . . . . Relay Couplers Released 45 | . . . . . . 19 . . 26 . . . . . . . . . . . . Machine Destruction 41 | . . . . . . 19 . . 22 . . . . . . . . . . . . Programmers 4 | . . . . . . . . . 4 . . . . . . . . . . . . Fabnet Peak Effective % . | . . . . . . . . . . . . . . . . . . . . . . Robots Rewired 11 | . . . 5 . . . . . . . . . . 6 . . . . . . . Allies Hacked . | . . . . . . . . . . . . . . . . . . . . . . Hacks Repelled . | . . . . . . . . . . . . . . . . . . . . . . Allies | -11 -10 -10 -10 -9 -8 -8 -8 -7 -7 -6 -6 -6 -5 -5 -5 -4 -4 -4 -3 -2 -1 -------- Run | Yrd Mat Min Exi Min Mat Gar Mat Fac Gar Fac Was Fac Fac Ext Cet Fac Was Fac Res Res Acc Total Allies 24 | . . 3 5 . . . . . 2 . . . . 9 5 . . . . . . Largest Group 11 | . . 3 8 8 6 . . . 2 . . . . 9 11 10 7 7 6 1 . Highest-Rated Group 739 | . . 40 106 106 82 . . . 157 . . . . 384 739 739 395 463 360 96 . Highest-Rated Ally 159 | . . 16 21 21 21 . . . 95 . . . . 159 159 152 96 96 96 96 . Initial Warlord ECA Mod 20 | . . . . . . . 12 11 11 20 20 20 19 19 19 18 18 18 17 16 15 Total Orders . | . . . . . . . . . . . . . . . . . . . . . . Ally Attacks 258 | . . . . 15 34 . . . 26 . . . . 39 64 . 1 16 63 . . Total Damage 6377 | . . . . 196 453 . . . 982 . . . . 893 1477 . 22 391 1963 . . Kills 46 | . . . . 4 8 . . . 9 . . . . 2 11 . . 4 8 . . Allies Corrupted 1 | . . . . . . . . . . . . . . . . . 1 . . . . Allies Melted . | . . . . . . . . . . . . . . . . . . . . . . Intel | -11 -10 -10 -10 -9 -8 -8 -8 -7 -7 -6 -6 -6 -5 -5 -5 -4 -4 -4 -3 -2 -1 ------- Run | Yrd Mat Min Exi Min Mat Gar Mat Fac Gar Fac Was Fac Fac Ext Cet Fac Was Fac Res Res Acc Active Infowar (turns) 17665 | 197 186 207 994 11 1541 2024 575 321 2122 757 79 772 685 1212 32 102 9 . 1665 746 3428 Sensors 6712 | . . . . . . . . . . 291 79 . 266 940 32 102 9 . 1480 746 2767 Terrain 1595 | 197 186 207 994 11 . . . . . . . . . . . . . . . . . Machine Analysis 185 | . . . . . . . . . . . . . . . . . . . . . 185 Spoofing 2 | . . . . . . . . . 2 . . . . . . . . . . . . Jamming 13200 | . . . . . 1541 2024 575 321 2122 757 50 772 685 696 . . . . 1348 . 2309 Robot Analysis Total 1 | . 1 . . . . . . . . . . . . . . . . . . . . Derelict Logs Recovered 1 | . . 1 . . . . . . . . . . . . . . . . . . . Drone Launches . | . . . . . . . . . . . . . . . . . . . . . . Drone Recoveries . | . . . . . . . . . . . . . . . . . . . . . . Exploration | -11 -10 -10 -10 -9 -8 -8 -8 -7 -7 -6 -6 -6 -5 -5 -5 -4 -4 -4 -3 -2 -1 ------------- Run | Yrd Mat Min Exi Min Mat Gar Mat Fac Gar Fac Was Fac Fac Ext Cet Fac Was Fac Res Res Acc Turns Passed 20939 | 264 186 207 994 150 1542 2024 575 321 2122 757 465 1079 1500 1555 411 125 221 158 1731 818 3734 Spaces Moved 8996 | 113 113 110 580 77 623 681 168 122 667 378 241 528 728 679 173 55 88 63 857 293 1659 Core 61 | 9 . . . . . . . . . . . . . . . . . . . . 52 Treads 7729 | 104 113 110 580 77 623 681 168 122 667 40 . 98 728 679 173 55 88 63 857 293 1410 Legs 4 | . . . . . . . . . . . . . . . . . . . . . 4 Wheels 1009 | . . . . . . . . . . 338 241 430 . . . . . . . . . Hover . | . . . . . . . . . . . . . . . . . . . . . . Flight 193 | . . . . . . . . . . . . . . . . . . . . . 193 Fastest Speed 25 | 50 160 160 160 160 160 240 240 240 240 160 145 160 160 160 160 160 160 160 152 155 25 Average Speed 174 | 152 160 160 160 160 188 240 240 240 240 168 158 160 161 160 160 160 160 160 170 172 139 Slowest Speed 352 | 160 160 160 160 160 240 240 240 240 320 240 160 160 240 160 160 160 160 160 232 232 352 Overloaded Moves . | . . . . . . . . . . . . . . . . . . . . . . Propulsion Burnouts . | . . . . . . . . . . . . . . . . . . . . . . Robots Hopped 8 | . . . . . . . . . . . . . . . . . . . . . 8 Potential Cave-ins . | . . . . . . . . . . . . . . . . . . . . . . Cave-ins Triggered . | . . . . . . . . . . . . . . . . . . . . . . Exploration Rate (%) 39 | 4 26 19 93 24 49 85 20 3 86 13 99 15 20 71 68 3 84 4 31 9 42 Regions Visited 21 Branch Regions 5 Pre-discovered Areas 2 | . . 1 1 . . . . . . . . . . . . . . . . . . Known Exits Taken 8 | . . . . . 1 . . 1 . . . . 1 1 1 . . 1 1 1 . Unknown Exits Taken 7 | 1 1 1 1 1 . . 1 . . . . 1 . . . . . . . . . Scrap Searched 1 | . . 1 . . . . . . . . . . . . . . . . . . . Spaces Dug 45 | . . . . . . 2 . . . . . . 2 1 . . . . . . 40 Terrain Destroyed 728 | . . . . . 12 93 1 . 69 3 8 57 105 32 2 . 8 3 4 8 323 Melee . | . . . . . . . . . . . . . . . . . . . . . . Projectile 226 | . . . . . 8 21 . . 3 . 8 10 17 19 2 . 8 3 3 2 122 AOE 487 | . . . . . 2 72 . . 66 3 . 47 88 13 . . . . . . 196 Terrain Rammed . | . . . . . . . . . . . . . . . . . . . . . . Walls Destroyed . | . . . . . . . . . . . . . . . . . . . . . . Machines Disabled . | . . . . . . . . . . . . . . . . . . . . . . Actions | -11 -10 -10 -10 -9 -8 -8 -8 -7 -7 -6 -6 -6 -5 -5 -5 -4 -4 -4 -3 -2 -1 --------- Run | Yrd Mat Min Exi Min Mat Gar Mat Fac Gar Fac Was Fac Fac Ext Cet Fac Was Fac Res Res Acc Total 12354 | 158 118 130 645 101 862 940 247 137 907 465 294 657 951 1030 282 76 168 110 1069 442 2565 Wait 1572 | 4 . 10 14 16 102 139 9 4 29 25 . 41 116 242 74 13 66 29 126 57 456 Move 8962 | 112 112 109 579 76 623 680 167 121 666 378 240 527 727 678 172 55 87 62 856 292 1643 Hop 8 | . . . . . . . . . . . . . . . . . . . . . 8 Pick Up 179 | 9 2 2 6 1 23 6 8 2 19 13 9 4 8 3 6 . 5 2 13 5 33 Fast Attach 100 | 7 . . 1 1 5 1 1 . 7 2 7 4 11 4 3 . 1 3 12 3 27 Attach 100 | . . . . . 5 5 2 2 13 3 5 8 8 2 3 . 1 2 2 3 36 Detach 28 | . . . . . 3 . . . 1 1 2 4 3 . 1 . . . . 1 12 Swap 112 | 1 . . 1 1 10 9 2 2 2 11 2 2 9 8 3 1 1 . 7 4 36 Drop 179 | 1 2 2 7 3 16 5 9 . 12 13 12 . 13 5 8 . 5 5 22 6 33 Fire 990 | 24 . 7 2 2 73 87 49 6 150 18 17 59 54 48 12 7 2 6 26 68 273 Melee . | . . . . . . . . . . . . . . . . . . . . . . Ram 1 | . . . . . . . . . . 1 . . . . . . . . . . . Kick 1 | . . . . . . . . . . . . . . . . . . . . . 1 Crush 28 | . 2 . . 1 2 . . . . . . . 2 5 . . . 1 5 3 7 Escape Stasis 24 | . . . . . . 8 . . 8 . . 8 . . . . . . . . . Rewire 70 | . . . 35 . . . . . . . . . . 35 . . . . . . . Trap . | . . . . . . . . . . . . . . . . . . . . . . Miscellaneous . | . . . . . . . . . . . . . . . . . . . . . . Route ------- -11/Scrapyard -10/Materials (discovered 2 exits: [*Mat] / [*Min]) -10/Mines -10/Exiles (discovered 2 exits: *Min x2) -9/Mines -8/Materials (discovered 2 exits: *Fac / Gar) -8/Garrison (discovered 2 exits: *Mat x2) -8/Materials -7/Factory -7/Garrison (discovered 3 exits: *Fac x3) -6/Factory (discovered 2 exits: Low x2) -6/Waste -6/Factory -5/Factory -5/Extension (discovered 2 exits: *Fac / *Cet) -5/Cetus (discovered 2 exits: *Fac / [*Arc]) -4/Factory -4/Waste -4/Factory -3/Research -2/Research (discovered 3 exits: *Acc x3) -1/Access History --------- Turn | Location | Event 11 | -11/Scrapyard | Discovered new exit (range 16) 265 | -11/Scrapyard | Entered Materials 304 | -10/Materials | Build established: Mutant 305 | -10/Materials | Discovered new exit (range 13) 401 | -10/Materials | Discovered new exit (range 8) 451 | -10/Materials | Entered Mines 453 | -10/Mines | Met a Derelict bent on vengeance 541 | -10/Mines | Assisted by bots powering up and referring to "LRC-V3" 642 | -10/Mines | Deemed a non-threat by the Exiles lab entrance 642 | -10/Mines | Discovered new exit (range 5) 658 | -10/Mines | Entered Exiles 658 | -10/Exiles | Found Exiles lab destroyed 658 | -10/Exiles | Accompanied by 3 allies 679 | -10/Exiles | Discovered new exit (range 15) 838 | -10/Exiles | Learned location of Zion (-6) 1027 | -10/Exiles | Build established: Commander-Mutant 1383 | -10/Exiles | Opened EX-Vault 1389 | -10/Exiles | Found AWS/Gauss 1625 | -10/Exiles | Discovered new exit (range 11) 1652 | -10/Exiles | Entered Mines 1652 | -9/Mines | Accompanied by 8 allies 1758 | -9/Mines | Discovered new exit (range 8) 1802 | -9/Mines | Entered Materials 1802 | -8/Materials | Accompanied by 6 allies 1802 | -8/Materials | Evolved 4 slots: Propulsion x1, Utility x3 1849 | -8/Materials | Repaired Propulsion Shielding 2016 | -8/Materials | Lost 6 allies 2399 | -8/Materials | Build established: Scavenger-Mutant 2933 | -8/Materials | Build established: Mutant 3153 | -8/Materials | Discovered new exit (range 10) 3344 | -8/Materials | Identified exit to Garrison 3344 | -8/Materials | Entered Garrison 3408 | -8/Garrison | Garrison Relay disabled 3442 | -8/Garrison | Triggered checkpoint 3490 | -8/Garrison | Build established: Scavenger-Mutant 3494 | -8/Garrison | Garrison Relay disabled 3646 | -8/Garrison | Triggered checkpoint 3834 | -8/Garrison | Triggered checkpoint 3877 | -8/Garrison | Garrison Relay disabled 3910 | -8/Garrison | Phase Generator disabled 4252 | -8/Garrison | Triggered checkpoint 4382 | -8/Garrison | Triggered checkpoint 4392 | -8/Garrison | Triggered checkpoint 4454 | -8/Garrison | Lost 3 parts (2n1w) 4642 | -8/Garrison | Triggered checkpoint 4704 | -8/Garrison | Garrison Relay disabled 4938 | -8/Garrison | Discovered new exit (range 10) 4966 | -8/Garrison | Triggered checkpoint 5053 | -8/Garrison | Garrison Relay disabled 5342 | -8/Garrison | Discovered new exit (range 10) 5368 | -8/Garrison | Entered Materials 5609 | -8/Materials | Discovered new exit (range 15) 5768 | -8/Materials | First assault squad dispatched 5943 | -8/Materials | Entered Factory 5943 | -7/Factory | Evolved 2 slots: Propulsion x1, Weapon x1 5961 | -7/Factory | Identified exit to Garrison 6249 | -7/Factory | Build established: Scavenger-Tank 6264 | -7/Factory | Entered Garrison 6298 | -7/Garrison | Triggered checkpoint 6337 | -7/Garrison | Garrison Relay disabled 6567 | -7/Garrison | Triggered checkpoint 6670 | -7/Garrison | Triggered checkpoint 6709 | -7/Garrison | Lost 10 parts (2p4n2u2w) 7030 | -7/Garrison | Triggered checkpoint 7071 | -7/Garrison | Lost 3 parts (1n2w) 7203 | -7/Garrison | Garrison Relay disabled 7254 | -7/Garrison | Discovered new exit (range 13) 7271 | -7/Garrison | Discovered new exit (range 103) 7271 | -7/Garrison | Discovered new exit (range 49) 7271 | -7/Garrison | Discovered new exit (range 13) 7328 | -7/Garrison | Build established: Scavenger-Mutant 7335 | -7/Garrison | Garrison Relay disabled 7491 | -7/Garrison | Triggered checkpoint 7653 | -7/Garrison | Triggered checkpoint 7727 | -7/Garrison | Found embedded Infiltrators 7731 | -7/Garrison | Garrison Relay disabled 7840 | -7/Garrison | Triggered checkpoint 8285 | -7/Garrison | Garrison Relay disabled 8308 | -7/Garrison | Phase Generator disabled 8386 | -7/Garrison | Entered Factory 8386 | -6/Factory | Evolved 2 slots: Utility x2 8604 | -6/Factory | Central database locked down 8786 | -6/Factory | Build established: Scavenger-Tank 8803 | -6/Factory | Identified exit to Lower Caves 9143 | -6/Factory | Sucked down chute 9143 | -6/Factory | Entered Waste 9158 | -6/Waste | Build established: Scavenger-Gunner 9158 | -6/Waste | EMP discharged 9167 | -6/Waste | Spotted C-40 Crusher 9219 | -6/Waste | Crushed by Compactor (1 part destroyed, 2 dropped) 9222 | -6/Waste | Crushed by Compactor (1 part destroyed, 2 dropped) 9223 | -6/Waste | Destroyed C-40 Crusher 9237 | -6/Waste | Spotted C-40 Crusher 9248 | -6/Waste | Destroyed C-40 Crusher 9253 | -6/Waste | Lost 3 parts (1n1u1w) 9258 | -6/Waste | EMP discharged 9258 | -6/Waste | System corruption reached 10% 9284 | -6/Waste | Found Damper Plating 9293 | -6/Waste | Spotted C-40 Crusher 9305 | -6/Waste | Crushed by Compactor (1 part destroyed, 2 dropped) 9311 | -6/Waste | Destroyed C-40 Crusher 9315 | -6/Waste | Spotted C-40 Crusher 9325 | -6/Waste | Destroyed C-40 Crusher 9348 | -6/Waste | Spotted C-40 Crusher 9358 | -6/Waste | EMP discharged 9362 | -6/Waste | Destroyed C-40 Crusher 9393 | -6/Waste | Spotted C-40 Crusher 9404 | -6/Waste | Destroyed C-40 Crusher 9458 | -6/Waste | EMP discharged 9458 | -6/Waste | System corruption reached 30% 9488 | -6/Waste | Discovered new exit (range 16) 9549 | -6/Waste | Build established: Scavenger-Tank 9558 | -6/Waste | EMP discharged 9608 | -6/Waste | Entered Factory 9686 | -6/Factory | AWS/Gauss suddenly broke down 9945 | -6/Factory | Build established: Scavenger-Gunner 10671 | -6/Factory | Discovered new exit (range 10) 10687 | -6/Factory | Entered another Factory area 10687 | -5/Factory | Evolved 2 slots: Utility x1, Weapon x1 10935 | -5/Factory | Repaired Mak. Transmission Jammer 10995 | -5/Factory | Build established: Scavenger-Tank 11922 | -5/Factory | Cargo convoy interrupted 12045 | -5/Factory | Discovered new exit (range 8) 12116 | -5/Factory | Identified exit to Extension 12187 | -5/Factory | Entered Extension 12874 | -5/Extension | Spotted B-75 Beast 12960 | -5/Extension | Destroyed B-75 Beast 12986 | -5/Extension | Rescued A7 13054 | -5/Extension | Rescued a captive Derelict 13150 | -5/Extension | Rescued a captive Derelict 13493 | -5/Extension | Spotted B-75 Beast 13513 | -5/Extension | Allies destroyed B-75 Beast 13697 | -5/Extension | Discovered new exit (range 16) 13699 | -5/Extension | Discovered new exit (range 15) 13728 | -5/Extension | Identified exit to Cetus 13742 | -5/Extension | Entered Cetus 13742 | -5/Cetus | Accompanied by 9 allies (A7) 13747 | -5/Cetus | Acquired a Cetus Manufacturing Module code from A7 13769 | -5/Cetus | Spotted Cetus Guard 13769 | -5/Cetus | Spotted Cetus Guard 13776 | -5/Cetus | Spotted Cetus Guard 13776 | -5/Cetus | Destroyed Cetus Guard 13779 | -5/Cetus | Spotted Cetus Guard 13785 | -5/Cetus | Allies destroyed Cetus Guard 13785 | -5/Cetus | Allies destroyed Cetus Guard 13792 | -5/Cetus | Allies destroyed Cetus Guard 13923 | -5/Cetus | Started Cetus Manufacturing Module 13948 | -5/Cetus | Manufactured an Enhanced Grunt 13970 | -5/Cetus | Discovered new exit (range 15) 13973 | -5/Cetus | Manufactured an Enhanced Grunt 13998 | -5/Cetus | Manufactured an Enhanced Grunt 14008 | -5/Cetus | Spotted Cetus Guard 14008 | -5/Cetus | Spotted Cetus Guard 14013 | -5/Cetus | Allies destroyed Cetus Guard 14018 | -5/Cetus | Allies destroyed Cetus Guard 14019 | -5/Cetus | Spotted Cetus Guard 14023 | -5/Cetus | Manufactured an Enhanced Grunt 14035 | -5/Cetus | Allies destroyed Cetus Guard 14042 | -5/Cetus | Spotted Cetus Guard 14042 | -5/Cetus | Allies destroyed Cetus Guard 14048 | -5/Cetus | Manufactured an Enhanced Grunt 14051 | -5/Cetus | Discovered new exit (range 15) 14061 | -5/Cetus | Met Revision 17 14064 | -5/Cetus | Lost 3 allies 14079 | -5/Cetus | Identified exit to Factory 14153 | -5/Cetus | Entered Factory 14153 | -4/Factory | Accompanied by 10 allies (A7) 14153 | -4/Factory | Evolved 2 slots: Propulsion x2 14278 | -4/Factory | Sucked down chute 14278 | -4/Factory | Entered Waste 14291 | -4/Waste | Spotted C-40 Crusher 14293 | -4/Waste | EMP discharged 14296 | -4/Waste | Destroyed C-40 Crusher 14298 | -4/Waste | 1 allies followed down the chute 14322 | -4/Waste | Spotted C-40 Crusher 14330 | -4/Waste | Destroyed C-40 Crusher 14339 | -4/Waste | Spotted C-40 Crusher 14340 | -4/Waste | Destroyed C-40 Crusher 14349 | -4/Waste | Spotted C-40 Crusher 14350 | -4/Waste | Destroyed C-40 Crusher 14386 | -4/Waste | Spotted C-40 Crusher 14387 | -4/Waste | Spotted C-40 Crusher 14393 | -4/Waste | EMP discharged 14393 | -4/Waste | System corruption reached 10% 14393 | -4/Waste | Destroyed C-40 Crusher 14393 | -4/Waste | Destroyed C-40 Crusher 14417 | -4/Waste | Discovered new exit (range 10) 14430 | -4/Waste | Identified exit to Factory 14482 | -4/Waste | Build established: Scavenger-Gunner 14493 | -4/Waste | EMP discharged 14499 | -4/Waste | Entered Factory 14499 | -4/Factory | Accompanied by 6 allies 14509 | -4/Factory | 8 allies followed down the chute 14605 | -4/Factory | Discovered new exit (range 13) 14641 | -4/Factory | Identified exit to Research 14657 | -4/Factory | Entered Research 14657 | -3/Research | Accompanied by 6 allies 14657 | -3/Research | Evolved 2 slots: Power x1, Utility x1 14857 | -3/Research | Revision forces began assault on 0b10 14945 | -3/Research | Met up with Revision 17++ 14969 | -3/Research | Spotted B-86 Titan 15003 | -3/Research | Destroyed B-86 Titan 15054 | -3/Research | Lost 3 allies 15184 | -3/Research | Repaired KE Penetrator 15357 | -3/Research | Research terminal network offline 15632 | -3/Research | Spotted Striker 15637 | -3/Research | Destroyed Striker 15687 | -3/Research | Lost 5 allies 15725 | -3/Research | Found Imp. Powered Armor 15957 | -3/Research | Found Prototype Launcher 15957 | -3/Research | Identified Hellfire Missile Launcher 16075 | -3/Research | Found Prototype Device 16075 | -3/Research | Identified Exp. Shield Generator 16208 | -3/Research | Discovered new exit (range 9) 16224 | -3/Research | Identified exit to Research 16299 | -3/Research | Found Unknown Launcher 16299 | -3/Research | Identified Gamma Bomb Array 16381 | -3/Research | Build established: Scavenger-Tank 16388 | -3/Research | Entered another Research area 16388 | -2/Research | Accompanied by 1 ally 16388 | -2/Research | Evolved 2 slots: Utility x2 16506 | -2/Research | Garrison activated, responded to threat 16737 | -2/Research | Identified exit to Access 16861 | -2/Research | Garrison activated, responded to threat 17071 | -2/Research | Found Quantum Capacitor 17138 | -2/Research | First assault squad dispatched 17206 | -2/Research | Entered Access 17206 | -1/Access | Evolved 2 slots: Utility x2 17376 | -1/Access | Energy Cycler disabled 17761 | -1/Access | Spotted B-99 Colossus 17912 | -1/Access | Destroyed B-99 Colossus 17953 | -1/Access | Found Prototype Ballistic Gun 17953 | -1/Access | Identified Multirail 18619 | -1/Access | Destroyed 8 combat bots 18728 | -1/Access | Build established: Scavenger-Gunner 19029 | -1/Access | System corruption reached 10% 19236 | -1/Access | Build established: Gunner 19456 | -1/Access | First assault squad dispatched 20228 | -1/Access | Lost 3 parts (2u1w) 20262 | -1/Access | Build established: Scavenger-Gunner 20266 | -1/Access | Destroyed 20 combat bots 20282 | -1/Access | High security lockdown imminent 20362 | -1/Access | High security lockdown engaged 20471 | -1/Access | Spotted Striker 20471 | -1/Access | Spotted Striker 20483 | -1/Access | Destroyed Striker 20484 | -1/Access | AWS/Gauss suddenly broke down 20490 | -1/Access | Destroyed Striker 20521 | -1/Access | Destroyed 10 combat bots 20732 | -1/Access | Destroyed Striker 20733 | -1/Access | Spotted Executioner 20773 | -1/Access | Lost 6 parts (1n4u1w) 20787 | -1/Access | Destroyed Executioner 20788 | -1/Access | Core integrity fell below 50% 20830 | -1/Access | Destroyed 9 combat bots 20852 | -1/Access | Spotted Striker 20852 | -1/Access | Spotted Executioner 20863 | -1/Access | Lost 19 parts (5p4n5u5w) 20901 | -1/Access | Spotted Executioner 20903 | -1/Access | System corruption reached 30% 20915 | -1/Access | Core integrity fell below 20% 20940 | -1/Access | Destroyed by G-73 Enforcer with Phase Gun Last Messages --------------- 20903_ Xenon Bombardment Thruster destroyed. 20914_ UA6YQ&H RW%MJASSCUMMV= 20926_ W-44 Eye sends out distress signal. 20928_ Acquired Unknown Leg. 20928_ Identified Adv. VSS Leg. 20930_ Acquired Adv. VSS Leg. 20931_ System corrupted: Energy discharge (-24). 20931_ C-45 Heavy ARC bursts open, deploying its payload. 20931_ G-73 Enforcer unfolds itself. 20931_ E-15 Imp unfolds itself. 20931_ Graphene Brace blown off. 20931_ Adv. VSS Leg blown off. 20931_ Imp. Hacking Suite blown off. 20931_ E-15 Imp destroyed. 20932_ Acquired Graphene Brace. 20933_ Imp. System Shield destroyed. 20934_ Acquired Adv. VSS Leg. 20940_ Kicked G-73 Enforcer out of the way. [Achievement: 40k Club] [Achievement: Overachiever] Map ----- +----------------------------------------------------+ | ?????????????????????????????????????????????????? | | ?????????????????????????????????????????????????? | | ?????????????????????????????????????????????????? | | ?????????????????????????????????????????????????? | | ?????????????????????????????????????????????????? | | ?????????????????????????????????????????????????? | | ?????????????????????????????????????????????????? | | ?????????????????????????????????????????????????? | | ?????????????????????????????????????????????????? | | ?????????????????????????????????????????????????? | | ?????????????????????????????????????????????????? | | ???????#########?????????????????????????????????? | | ???????# #?????????????????????????????????? | | ???????# #?????????????????????????????????? | | ???????# ##########????????????????????????? | | ???????# #????????????????????????? | | ???????# #????????????????????????? | | ???????# #????????????????????????? | | ######## #????????????????????????? | | ########p####?????????????????????? | | #????#!p #?????????????????????? | | #????# #?????????????????????? | | #????# #?????????????????????? | | #????# * ! #?????????????????????? | | #????# * =gg#?????????????????????? | | #????# !g@ #?????????????????????? | | ###############????#####/##?????????????????????? | | #?????????????????????? % ?????????????????????? | | #?????????????????????? ???????????????????? | | #????????????????????? ??????????????????? | | #????????????????????? #?????????????????? | | #???????????????????? #?????????????????? | | #???????????????????? #?????????????????? | | ##???????????????????###########?????????????????? | | ?????????????????????????????????????????????????? | | ?????????????????????????????????????????????????? | | ?????????????????????????????????????????????????? | | ?????????????????????????????????????????????????? | | ?????????????????????????????????????????????????? | | ?????????????????????????????????????????????????? | | ?????????????????????????????????????????????????? | | ?????????????????????????????????????????????????? | | ?????????????????????????????????????????????????? | | ?????????????????????????????????????????????????? | | ?????????????????????????????????????????????????? | | ?????????????????????????????????????????????????? | | ?????????????????????????????????????????????????? | | ?????????????????????????????????????????????????? | | ?????????????????????????????????????????????????? | | ?????????????????????????????????????????????????? | +----------------------------------------------------+ Best States ------------- Heat Dissipation 152 Energy Generation 45 Energy Capacity 600 Matter Stores 300 Matter Capacity 300 Sight Range 16 Robot Scan Range 16 Terrain Scan Range 16 Terrain Scan Density 10 Jamming Range 14 Base Temperature (-) 200 Armor Coverage 1700 Resistance: KI 20 Resistance: EX 50 Core Shielding 30 Power Shielding 66 Propulsion Shielding 66 Utility Shielding 66 Evasion (%) 64 Targeting Accuracy 8 Target Analysis 12 Core Analysis 6 Armor Integrity Analysis 40 Recoil Reduction 6 Salvage Targeting 4 Offensive Hacking 12 Defensive Hacking 24 Item Schematics ----------------- None Robot Schematics ------------------ None Fabricated ------------ Nothing Repaired ---------- Propulsion Shielding | 64% | -8/Materials Mak. Transmission Jammer | 4% | -5/Factory KE Penetrator | 38% | -3/Research Studied --------- Gauss Rifle | -8/Materials | Hacked Lightning Gun | -6/Factory | Hacked Hvy. Treads | -5/Factory | Hacked Alien Tech Used ----------------- None Achievements -------------- 40k Club Bullet Installation Can't Touch This Deadly Precision Drive-By Hot Stuff Killing Spree Overachiever Revolutionary Research Tank Life Turtlemind Ultimate Loadout Challenges ------------ None Game ------ Seed HeatThrusterVibroblade Manual? 0 Play Time 03:20:21 Cumulative 156.4 hours Start 2026.03.16 @ 21:32:23 End 2026.03.18 @ 18:07:30 Sessions 9 Manual Loads 0 Difficulty Rogue Special Mode None Game No. 98 Rogue 94 Adventurer 4 Explorer 0 Win Type - Total 11 Types 11/0/0/0/0/0/0/0/0/0 Lore% 81 Gallery% 57 Achievement% 51 Wizard Run 0 Options --------- Layout 0 ASCII 0 Keyboard 1 Movement Vi Keybinds 0 Fullscreen 0 Font 16/SmallcapsGlow Map View 76x50 Zoom Use 0% Tactical HUD 1 Map Filters NONE Filters NONE Steam 1 RUN: 2eb72d5f-07a9-4ecf-ae4c-04f1c81ac4d7